fUST/lending_fUST_20240104
["ID","MTS","AMOUNT","RATE_DAILY","PERIOD"]
[310115176,1704364232706,-183.18333669,0.00022999,2]
[310115207,1704364238181,-1097.45767904,0.00022999,2]
[310115209,1704364238191,-9885.19845646,0.00023,2]
[310115211,1704364238200,-250.0,0.00023138,2]
[310115213,1704364238210,-166.666666,0.00023456,2]
[310115215,1704364238219,-153.0,0.00023581,2]
[310115217,1704364238229,-196.04348964,0.00023728,2]
[310115219,1704364238238,-153.0,0.00023782,2]
[310115221,1704364238247,-153.0,0.00023782,2]
[310115223,1704364238256,-153.0,0.00023782,2]
[310115225,1704364238266,-1286.93769728,0.00023924,2]
[310115227,1704364238276,-166.666666,0.00023969,2]
[310115229,1704364238286,-1990.18628192,0.00024,2]
[310115231,1704364238297,-1570.34375065,0.00024,3]
[310115233,1704364238306,-166.666666,0.00024482,2]
[310115234,1704364238315,-154.43164545,0.000246,2]
[310115236,1704364238324,-380.0,0.00024658,2]
[310115238,1704364238333,-253.826543,0.00024899,2]
[310115240,1704364238343,-253.826543,0.00024899,2]
[310115242,1704364238352,-495.98178173,0.000249,2]
[310115244,1704364238361,-500.0,0.00024969,4]
[310115246,1704364238370,-500.0,0.00024969,4]
[310115248,1704364238380,-281.72175759,0.00024969,4]
[310115250,1704364238389,-500.0,0.00024969,4]
[310115252,1704364238399,-500.0,0.00024969,4]
[310115254,1704364238408,-615.88264176,0.00024969,4]
[310115256,1704364238417,-302.45515062,0.00024969,4]
[310115257,1704364238427,-500.0,0.00024969,4]
[310115258,1704364238436,-453.01519641,0.00024969,4]
[310115259,1704364238445,-397.81212279,0.00024969,2]
[310115260,1704364238455,-500.0,0.00024969,2]
[310115261,1704364238464,-500.0,0.00024969,2]
[310115262,1704364238474,-502.71340626,0.00024969,2]
[310115263,1704364238484,-7377.11608555,0.0002497,2]
[310115264,1704364238497,-3881.16655514,0.0002497,2]
[310115265,1704364238509,-2421.34619997,0.0002497,2]
[310115266,1704364238521,-8183.15787175,0.0002497,2]
[310115277,1704364241239,-2118.45,0.0002496,3]
[310115280,1704364241315,-860.25,0.0002496,3]
[310115281,1704364241325,-508.80931879,0.00024969,2]
[310115282,1704364241335,-254137.21328759,0.0002497,2]
[310115283,1704364241344,-230.12642048,0.00024997,2]
[310115284,1704364241355,-163.89682936,0.00024998,2]
[310115285,1704364241365,-560.81820395,0.00024998,2]
[310115286,1704364241375,-737.64657355,0.00025,2]
[310115287,1704364241385,-8993.44285812,0.00025,2]
[310115288,1704364241396,-679.56551195,0.00025,2]
[310115289,1704364241408,-3000.0,0.00025,2]
[310115290,1704364241418,-4704.77366573,0.00025,2]
[310115291,1704364241428,-613.10329314,0.00025,2]
[310115292,1704364241437,-2030.47268262,0.00025,2]
[310115293,1704364241447,-5000.0,0.00025,6]
[310115294,1704364241456,-2000.0,0.00025,2]
[310115295,1704364241465,-225.648381,0.00025,2]
[310115296,1704364241474,-225.648381,0.00025,2]
[310115297,1704364241484,-253.826543,0.00025,2]
[310115298,1704364241493,-253.826543,0.00025,2]
[310115299,1704364241502,-2000.0,0.0002501,2]
[310115300,1704364241512,-2000.0,0.0002502,2]
[310115301,1704364241521,-2000.0,0.0002503,2]
[310115302,1704364241530,-2000.0,0.0002504,2]
[310115303,1704364241584,-2000.0,0.0002505,2]
[310115304,1704364241599,-2000.0,0.0002506,2]
[310115305,1704364241608,-2000.0,0.0002507,2]
[310115306,1704364241617,-3827.902169,0.0002508,2]
[310115307,1704364241627,-225.648381,0.0002508,2]
[310115308,1704364241636,-225.648381,0.0002508,2]
[310115309,1704364241645,-253.826543,0.0002508,2]
[310115310,1704364241655,-253.826543,0.0002508,2]
[310115311,1704364241665,-200.0,0.00025479,2]
[310115312,1704364241674,-495.98178173,0.00025499,2]
[310115313,1704364241684,-525.12671748,0.00026,2]
[310115314,1704364241693,-495.98178173,0.00026099,2]
[310115315,1704364241703,-150.0,0.00026138,2]
[310115316,1704364241712,-695.11477845,0.000264,2]
[310115317,1704364241721,-154.0222339,0.00026666,2]
[310115318,1704364241729,-153.0,0.00026666,2]
[310115319,1704364241739,-153.0,0.00026666,2]
[310115320,1704364241748,-153.0,0.00026666,2]
[310115321,1704364241758,-153.0,0.00026666,2]
[310115322,1704364241767,-153.0,0.00026666,2]
[310115323,1704364241776,-154.877926,0.00026666,2]
[310115324,1704364241786,-495.98178173,0.00026698,2]
[310115325,1704364241796,-1000.0,0.00027,27]
[310115326,1704364241805,-1500.0,0.00027,2]
[310115327,1704364241814,-225.648381,0.00027219,2]
[310115328,1704364241823,-225.648381,0.00027219,2]
[310115329,1704364241832,-253.826543,0.00027219,2]
[310115330,1704364241843,-253.826543,0.00027219,2]
[310115331,1704364241852,-62689.46341056,0.00027219,2]
[310115332,1704364241864,-802.30944231,0.00027219,2]
[310115364,1704364244770,-421.70266541,0.00024968,2]
[310115377,1704364246091,-309.0,0.00023926,2]
[310115379,1704364246101,-1223.88847794,0.00024968,2]
[310115381,1704364246113,-406.27926345,0.00024968,2]
[310115383,1704364246122,-154.86062544,0.00024968,2]
[310115384,1704364246131,-5016.03189399,0.00027219,2]
[310115548,1704365432424,-154.86062544,0.00022414,4]
[310115549,1704365432436,-156.63971141,0.00022415,2]
[310115550,1704365432447,-154.86062544,0.00022416,2]
[310115551,1704365432457,-154.86062544,0.00022417,2]
[310115552,1704365432467,-149.50722118,0.00022713,2]
[310115553,1704365432479,-2086.94491633,0.00022713,2]
[310115555,1704365432491,-1075.44453667,0.00022713,2]
[310115599,1704365439632,20000.0,0.0003,120]
[310116030,1704365446276,-316.09251385,0.00022713,2]
[310116043,1704366592377,200.0,0.00024983,7]
[310116083,1704366632452,-154.82968734,0.00022297,2]
[310116085,1704366632461,-154.82968734,0.00022297,4]
[310116087,1704366632471,-156.63971141,0.00022298,2]
[310116089,1704366632479,-154.82968734,0.00022299,2]
[310116091,1704366632489,-166.666666,0.0002232,2]
[310116093,1704366632498,-1369.33579896,0.00022472,2]
[310116260,1704366641696,-154.82968734,0.00022296,2]
[310116261,1704366641707,-3540.89432645,0.00022472,2]
[310116262,1704366641716,-171.310844,0.00022473,2]
[310116263,1704366641726,-2076.65490248,0.00022713,2]
[310116264,1704366641735,-1819.50931487,0.00022713,2]
[310116265,1704366641745,-154.84515485,0.00022713,2]
[310116266,1704366641755,-972.81557133,0.00022717,2]
[310116267,1704366641768,-1194.59449977,0.00022717,2]
[310116268,1704366641778,-166.666666,0.00022929,2]
[310116269,1704366641789,-207.468905,0.000231,2]
[310116270,1704366641801,-166.666666,0.00023537,2]
[310116271,1704366641811,-9904.66664568,0.00023999,2]
[310116272,1704366641822,-1660.09772551,0.00024,2]
[310116273,1704366641831,-166.666666,0.00024146,2]
[310116274,1704366641842,-309.0,0.00024151,2]
[310116275,1704366641853,-1661.13987494,0.00024405,2]
[310116276,1704366641862,-155.13204423,0.00024469,2]
[310116277,1704366641873,-166.666666,0.00024754,2]
[310116278,1704366641884,-207.06996755,0.00024968,2]
[310116279,1704366641894,-154.8915759,0.00024968,2]
[310116280,1704366641904,-245.62517456,0.00024968,2]
[310116281,1704366641913,-546.11096109,0.00024983,2]
[310116282,1704366641922,-154.82968734,0.00024983,4]
[310116283,1704366641933,-1311.3,0.0002499,3]
[310116284,1704366641945,-927.11905259,0.0002499,3]
[310116285,1704366641959,-1336.58094741,0.0002499,3]
[310116286,1704366641968,-57.02020967,0.0002499,3]
[310116424,1704366646502,-1829.39979033,0.0002499,3]
[310116426,1704366646511,-1572.01,0.0002499,3]
[310116427,1704366646521,-5711.69941199,0.00024998,2]
[310116428,1704366646532,-154.82968734,0.00024998,2]
[310116430,1704366646542,-264.04630508,0.00024998,2]
[310116431,1704366646554,-329.57155698,0.00024999,2]
[310116432,1704366646563,-470.98565072,0.00024999,2]
[310116434,1704366646572,-463.92340034,0.00024999,2]
[310116435,1704366646582,-500.0,0.00024999,2]
[310116437,1704366646590,-510.9520364,0.00024999,2]
[310116438,1704366646602,-505.47601819,0.00024999,2]
[310116439,1704366646611,-2481.77043544,0.00025,2]
[310116440,1704366646620,-4704.77366573,0.00025,2]
[310116441,1704366646630,-613.10329314,0.00025,2]
[310116442,1704366646639,-3000.0,0.00025,2]
[310116443,1704366646648,-679.56551195,0.00025,2]
[310116444,1704366646657,-59834.70890505,0.00025,2]
[310116445,1704367234813,5116.54004849,0.00025,7]
[310116448,1704367608525,1000.0,0.00025,25]
[310116840,1704367838740,-154.81422293,0.0002245,2]
[310116842,1704367838749,-154.81422293,0.0002245,4]
[310116844,1704367838759,-154.81422293,0.00022451,2]
[310116846,1704367838768,-154.81422293,0.00022451,2]
[310116848,1704367838776,-166.666666,0.00022834,2]
[310116849,1704367838786,-427.64172336,0.000229,2]
[310116856,1704367838853,-146.19799448,0.000229,2]
[310116858,1704367838863,-166.666666,0.00023456,2]
[310116860,1704367838876,-167.0,0.0002355,2]
[310116862,1704367838886,-166.666666,0.00024079,2]
[310116864,1704367838896,-9904.66664568,0.000247,2]
[310116866,1704367838906,-166.666666,0.00024701,2]
[310116868,1704367838915,-189.23344718,0.00024983,2]
[310116871,1704367838924,-1380.06,0.0002499,3]
[310116873,1704367838933,-1150.05,0.0002499,3]
[310116887,1704367839014,-305.68639929,0.00024998,2]
[310116888,1704367839024,-558.51022814,0.00024998,2]
[310116889,1704367839033,-4647.17694669,0.00024999,2]
[310116890,1704367839043,-46422.29109495,0.00025,2]
[310116891,1704367839052,-4704.77366573,0.00025,2]
[310116892,1704367839061,-679.56551195,0.00025,2]
[310116893,1704367839070,-613.10329314,0.00025,2]
[310116894,1704367839080,-154.82968734,0.00025,2]
[310116895,1704367839089,-3000.0,0.00025,2]
[310116896,1704367839098,-1539.62664763,0.00025,2]
[310116897,1704367839108,-1819.50931487,0.00025,2]
[310116898,1704367839117,-2076.65490248,0.00025,2]
[310116899,1704367839127,-154.82968734,0.00025,4]
[310116900,1704367839137,-822.33386658,0.00025017,2]
[310116901,1704367839147,-166.666666,0.00025324,2]
[310116902,1704367839157,-166.666666,0.00025946,2]
[310116903,1704367839167,-525.12671748,0.00026,2]
[310116904,1704367839177,-153.0,0.00026,2]
[310116905,1704367839188,-153.0,0.00026,2]
[310116906,1704367839198,-153.0,0.00026,2]
[310116907,1704367839207,-630.11669333,0.00026268,2]
[310116908,1704367839217,-167.0,0.0002655,2]
[310116909,1704367839226,-5000.0,0.000266,10]
[310116910,1704367839236,-6353.88825429,0.00026644,2]
[310116911,1704367839246,-3490.52037143,0.00026793,2]
[310116919,1704367841876,-1509.47962857,0.00026793,2]
[310116920,1704367841887,-1334.33936866,0.00026999,2]
[310116921,1704367841897,-1000.0,0.00027,27]
[310116922,1704367841907,-1500.0,0.00027,2]
[310116923,1704367841917,-165.32726059,0.000271,2]
[310116924,1704367841926,-165.32726057,0.0002711,2]
[310116925,1704367841936,-281.72503125,0.00027116,2]
[310116926,1704367841946,-2961.94798626,0.00027117,2]
[310116927,1704367841955,-154.84515485,0.00027117,2]
[310116928,1704367841967,-154.84515485,0.00027117,2]
[310116929,1704367841976,-155.21142766,0.00027118,2]
[310116930,1704367841985,-463.92340034,0.00027118,2]
[310116931,1704367841995,-505.4760182,0.00027118,2]
[310116932,1704367842005,-601.84136297,0.00027118,4]
[310116933,1704367842014,-500.0,0.00027118,4]
[310116934,1704367842023,-648.91182334,0.00027118,4]
[310116935,1704367842032,-500.0,0.00027118,4]
[310116936,1704367842041,-169.52958506,0.00027118,4]
[310116937,1704367842051,-371.80911784,0.00027118,4]
[310116938,1704367842060,-37199.53588911,0.00027119,2]
[310116939,1704367842073,-999.91262352,0.00027119,2]
[310116959,1704367843666,-154.81422293,0.00022449,2]
[310116960,1704367843679,-4050.43198707,0.00027119,2]
[310116961,1704367843691,-1099.02518719,0.00027119,2]
[310116962,1704367843704,-3019.85365004,0.00027119,2]
[310117049,1704367846735,-14204.93862691,0.00027119,2]
[310117053,1704367846747,-1197.17794005,0.00027119,2]
[310117065,1704368577730,332.0455798,0.00029,30]
[310117282,1704369038019,-154.82968734,0.00023142,4]
[310117283,1704369038029,-154.82968734,0.00023143,2]
[310117284,1704369038039,-150.0,0.00023144,2]
[310117285,1704369038048,-154.82968734,0.00024455,2]
[310117286,1704369038058,-197.011473,0.00024593,2]
[310117287,1704369038067,-5216.22131587,0.00024999,2]
[310117291,1704369041383,-2613.43562424,0.00024999,2]
[310117292,1704369041395,-1092.67053672,0.00024999,2]
[310117293,1704369041408,-982.33916885,0.00024999,2]
[310117294,1704369041417,-679.56551195,0.00025,2]
[310117295,1704369041427,-2481.77043544,0.00025,2]
[310117296,1704369041437,-197.80029328,0.00025,2]
[310117333,1704369045857,-4506.97337245,0.00025,2]
[310117334,1704369045867,-382.55981189,0.00025019,2]
[310117335,1704369045877,-345.674438,0.00025131,2]
[310117336,1704369045886,-525.12671748,0.00026269,2]
[310117337,1704369045896,-197.011473,0.0002627,2]
[310117338,1704369045906,-1500.0,0.00027,2]
[310117339,1704369045915,-1049.42753666,0.00027117,7]
[310117340,1704369045924,-212.37249657,0.00027118,2]
[310117341,1704369045933,-13996.31350145,0.00027119,2]
[310117393,1704370232008,-154.84515485,0.00024454,2]
[310117395,1704370232018,-154.84515485,0.00024455,2]
[310117397,1704370232027,-154.86062544,0.00024456,4]
[310117398,1704370232038,-197.011473,0.00024921,2]
[310117401,1704370232048,-255.0398746,0.00025019,2]
[310117402,1704370232057,-172.837219,0.00025467,2]
[310117405,1704370232066,-620.50583466,0.00026203,2]
[310117408,1704370232076,-447.9546636,0.00026999,2]
[310117592,1704370238180,-9456.71198208,0.00026999,2]
[310117594,1704370238190,-1000.0,0.00027,27]
[310117596,1704370238199,-1500.0,0.00027,2]
[310117598,1704370238209,-1035.78186515,0.00027019,2]
[310117600,1704370238219,-612.47089973,0.00027019,2]
[310117602,1704370238228,-850.8951888,0.0002702,2]
[310117604,1704370238237,-38693.45184137,0.00027021,2]
[310117612,1704370238302,-3028.04534183,0.00027021,2]
[310117614,1704370238312,-685.63,0.00027109,3]
[310117616,1704370238322,-165.32726057,0.00027117,2]
[310117618,1704370238331,-563.2020091,0.00027118,2]
[310117620,1704370238341,-38938.43568566,0.00027119,2]
[310117751,1704370243048,-290.3002696,0.00027119,2]
[310117765,1704370689442,150.83408251,0.00027148,30]
[310117766,1704370689473,150.83408251,0.00026605,120]
[310117767,1704370793200,200.0,0.00021761,7]
[310117768,1704370793891,280.0,0.00023937,7]
[310117796,1704371093819,200.0,0.0002109,7]
[310117797,1704371094772,280.0,0.00023199,7]
[310117798,1704371226387,150.78889555,0.00026535,30]
[310117799,1704371226491,150.78889555,0.00026005,120]
[310117800,1704371229106,-261.41294884,0.00018167,2]
[310117801,1704371229128,-166.361402,0.00018167,2]
[310117802,1704371229150,-154.79876161,0.00018168,3]
[310117803,1704371229172,-871.39988609,0.00018168,2]
[310117804,1704371229193,-154.79876161,0.00018168,2]
[310117805,1704371229213,-683.13879405,0.00018169,2]
[310117806,1704371229233,-1029.24597412,0.00018169,2]
[310117807,1704371229252,-1019.69672645,0.00018169,2]
[310117808,1704371229275,-2997.9503727,0.00018169,2]
[310117809,1704371229295,-945.03415602,0.0001817,2]
[310117810,1704371229316,-154.79876161,0.0001817,2]
[310117811,1704371229336,-154.79876161,0.0001817,2]
[310117812,1704371229361,-154.79876161,0.00018171,2]
[310117813,1704371229382,-13675.790189,0.00018171,2]
[310117814,1704371229402,-228.127586,0.00018171,2]
[310117815,1704371229425,-36779.03407902,0.00018172,2]
[310117816,1704371229446,-24900.0,0.00018173,2]
[310117817,1704371229465,-174.513544,0.00019178,2]
[310117818,1704371229484,-154.82968734,0.00019772,2]
[310117819,1704371229503,-154.82968734,0.0002,2]
[310117820,1704371229523,-235.68021843,0.0002,2]
[310117821,1704371229542,-265.01794046,0.0002,2]
[310117822,1704371229568,-154.87609912,0.0002,2]
[310117823,1704371229588,-1389.46325333,0.00020786,2]
[310117824,1704371229608,-1193.2978632,0.00020798,2]
[310117825,1704371229627,-2546.08283938,0.000208,3]
[310117826,1704371229647,-166.666666,0.00021918,2]
[310117827,1704371229670,-166.666666,0.00022559,2]
[310117828,1704371229690,-154.79876161,0.00023199,2]
[310117829,1704371229763,-618.72371927,0.00023199,2]
[310117830,1704371229783,-154.79876161,0.00023199,2]
[310117831,1704371229803,-154.79876161,0.00023199,2]
[310117832,1704371229822,-1486.93342896,0.00023199,2]
[310117833,1704371247080,-589.72147352,0.00023199,2]
[310117834,1704371247101,-1819.50931487,0.00023199,2]
[310117835,1704371247121,-129.10581161,0.00023199,2]
[310117836,1704371247163,-489.61790766,0.00023199,2]
[310117837,1704371247182,-213.26712396,0.00023199,2]
[310117838,1704371247200,-154.79876161,0.00023199,2]
[310117839,1704371247220,-154.79876161,0.00023199,2]
[310117840,1704371247240,-166.666666,0.000232,2]
[310117841,1704371247259,-166.666666,0.00023841,2]
[310117842,1704371247277,-154.81422293,0.00023937,2]
[310117843,1704371247297,-5942.09361641,0.00024404,2]
[310117844,1704371247316,-757.03758915,0.00024405,5]
[310117845,1704371247334,-276.5020075,0.00024407,2]
[310117846,1704371247353,-166.666666,0.00024482,2]
[310117847,1704371247375,-174.4108642,0.00024909,2]
[310117848,1704371247394,-4704.77366573,0.00025,2]
[310117849,1704371247413,-154.84515485,0.00025,2]
[310117850,1704371247435,-581.28035708,0.00025019,2]
[310117851,1704371247453,-200.0,0.00025479,2]
[310117852,1704371247472,-683.13879405,0.00025502,2]
[310117853,1704371247491,-391.0,0.00025519,7]
[310117854,1704371247510,-349.80900938,0.00025761,2]
[310117855,1704371247528,-525.12671748,0.00026,2]
[310117856,1704371247547,-3002.87321176,0.00026605,2]
[310117857,1704371247566,-1463.62120511,0.00026605,2]
[310117858,1704371247584,-157.953866,0.00026836,2]
[310117859,1704371247605,-157.953866,0.00026836,2]
[310117860,1704371247682,-5439.92,0.00026836,3]
[310117861,1704371247701,-485.76744577,0.00026844,2]
[310117862,1704371247721,-574.28933289,0.00026844,2]
[310117863,1704371247741,-500.0,0.00026844,2]
[310117864,1704371247761,-282.57146796,0.00026844,2]
[310117865,1704371247779,-154.90701868,0.00026844,2]
[310117866,1704371247798,-154.79876161,0.00026844,2]
[310117867,1704371247817,-666.08453399,0.00026845,2]
[310117868,1704371247835,-166.42892417,0.00026845,2]
[310117869,1704371247854,-24257.05083597,0.00026845,2]
[310117897,1704371432225,-154.79876161,0.00023198,4]
[310117898,1704371432235,-178.83619526,0.00023199,2]
[310117899,1704371432246,-1551.7812669,0.00023199,2]
[310117900,1704371432255,-200.343385,0.00023199,2]
[310117901,1704371432265,-473.73494648,0.00025501,2]
[310117902,1704371432275,-945.03415602,0.00026842,2]
[310117905,1704371432285,-202.13669705,0.00026843,2]
[310117907,1704371432296,-243.42120947,0.00026843,2]
[310117910,1704371432306,-197.69513547,0.00026843,2]
[310117913,1704371432316,-522.83735928,0.00026843,2]
[310117915,1704371432327,-300.49446873,0.00026843,2]
[310117917,1704371432338,-395.6291689,0.00026843,2]
[310117919,1704371432349,-349.44113555,0.00026844,2]
[310117921,1704371432359,-737.76953783,0.00026844,2]
[310117923,1704371432370,-12504.62467869,0.00026845,2]
[310117925,1704371432380,-2076.65490248,0.00026845,2]
[310117927,1704371432390,-154.79876161,0.00026845,2]
[310117929,1704371432401,-762.54664786,0.00026845,2]
[310117933,1704371432411,-2943.74857591,0.00026845,2]
[310117935,1704371432422,-237.05322,0.00026846,2]
[310117938,1704371432431,-237.05322,0.00026846,2]
[310117940,1704371432441,-7837.02142655,0.00026846,2]
[310117943,1704371432451,-157.953866,0.00027,2]
[310117945,1704371432461,-157.953866,0.00027,2]
[310117948,1704371432471,-1500.0,0.00027,2]
[310117949,1704371432481,-172.13421517,0.00027019,2]
[310117951,1704371432491,-150.78889555,0.00027077,7]
[310117952,1704371432502,-4690.81088575,0.00027106,2]
[310117954,1704371432512,-1122.85250417,0.00027107,2]
[310117955,1704371432521,-210.2767927,0.00027107,2]
[310117957,1704371432532,-155.24487396,0.00027107,2]
[310117959,1704371432542,-295.15982489,0.00027107,2]
[310117960,1704371432551,-966.88177596,0.00027107,2]
[310117962,1704371432562,-3148.1,0.00027107,3]
[310117964,1704371432573,-4533.27,0.00027108,3]
[310117966,1704371432586,-3402.65266471,0.00027108,3]
[310118033,1704371438311,-375.06733529,0.00027108,3]
[310118034,1704371438321,-242.01122945,0.00027115,2]
[310118035,1704371438330,-529.3548763,0.00027116,2]
[310118036,1704371438342,-237.05322,0.00027117,2]
[310118037,1704371438351,-237.05322,0.00027117,2]
[310118038,1704371438359,-151.0,0.00027117,2]
[310118039,1704371438369,-151.0,0.00027117,2]
[310118040,1704371438378,-157.953866,0.00027117,2]
[310118041,1704371438387,-157.953866,0.00027117,2]
[310118042,1704371438397,-166.08253714,0.00027117,2]
[310118043,1704371438407,-133.80644982,0.00027117,2]
[310118044,1704371438441,-1512.13501887,0.00027117,2]
[310118045,1704371438451,-1678.44623893,0.00027117,2]
[310118046,1704371438461,-2704.45519417,0.00027117,2]
[310118047,1704371438470,-254.91008809,0.00027117,2]
[310118048,1704371438479,-155.37462333,0.00027117,2]
[310118049,1704371438488,-399.38718748,0.00027117,2]
[310118050,1704371438497,-154.84515485,0.00027117,2]
[310118051,1704371438506,-215.50721126,0.00027117,2]
[310118052,1704371438515,-243.37965784,0.00027117,20]
[310118053,1704371438524,-590.516407,0.00027117,2]
[310118054,1704371438534,-242.17543569,0.00027117,2]
[310118055,1704371438542,-2097.15281013,0.00027117,2]
[310118056,1704371438551,-383.32525908,0.00027117,2]
[310118057,1704371438560,-553.25941224,0.00027117,2]
[310118058,1704371438570,-331.69639755,0.00027117,2]
[310118059,1704371438580,-155.33638669,0.00027117,2]
[310118060,1704371438591,-253.17313502,0.00027117,2]
[310118061,1704371438600,-155.73414115,0.00027117,2]
[310118062,1704371438609,-426.44423862,0.00027117,2]
[310118063,1704371438618,-2067.23046819,0.00027117,2]
[310118064,1704371438628,-295.06339553,0.00027117,2]
[310118065,1704371438637,-2031.60443603,0.00027117,2]
[310118066,1704371438646,-281.65527264,0.00027117,2]
[310118067,1704371438655,-394.96400341,0.00027117,2]
[310118068,1704371438664,-237.05322,0.00027118,2]
[310118069,1704371438673,-237.05322,0.00027118,2]
[310118070,1704371438682,-151.0,0.00027118,2]
[310118071,1704371438690,-157.953866,0.00027118,2]
[310118072,1704371438699,-157.953866,0.00027118,2]
[310118073,1704371438708,-15856.05933973,0.00027118,2]
[310118074,1704371438717,-402.00253302,0.00027118,2]
[310118075,1704371438727,-586.92860098,0.00027118,2]
[310118076,1704371438738,-7553.81295053,0.00027119,2]
[310118077,1704371438748,-237.05322,0.00027119,2]
[310118078,1704371438757,-237.05322,0.00027119,2]
[310118079,1704371438766,-237.05322,0.00027119,2]
[310118080,1704371438775,-237.05322,0.00027119,2]
[310118081,1704371438784,-151.0,0.00027119,2]
[310118082,1704371438793,-151.0,0.00027119,2]
[310118083,1704371438803,-157.953866,0.00027119,2]
[310118084,1704371438812,-157.953866,0.00027119,2]
[310118085,1704371438821,-157.953866,0.00027119,2]
[310118086,1704371438831,-157.953866,0.00027119,2]
[310118087,1704371438842,-694.45678432,0.00027119,4]
[310118088,1704371438850,-3125.50457669,0.00027119,2]
[310118089,1704371438860,-669.94724784,0.00027119,2]
[310118090,1704371438870,-3009.76368581,0.00027119,2]
[310118091,1704371438879,-156.07978619,0.00027119,2]
[310118092,1704371438944,-1419.29884884,0.00027119,5]
[310118093,1704371438954,-39628.49537626,0.00027119,7]
[310118096,1704371441363,-49064.80363152,0.00027119,7]
[310118097,1704371441373,-547.7266685,0.00027119,2]
[310118098,1704371441383,-155.94621949,0.00027119,2]
[310118099,1704371441392,-493.59848873,0.00027188,2]
[310118100,1704371441402,-150.0,0.000272,2]
[310118101,1704371441412,-502.14718879,0.00027214,4]
[310118102,1704371441422,-421.28895408,0.00027214,4]
[310118103,1704371441431,-500.0,0.00027214,4]
[310118104,1704371441441,-500.0,0.00027214,4]
[310118105,1704371441451,-206.32224759,0.00027214,4]
[310118106,1704371441461,-153.85683838,0.00027214,4]
[310118107,1704371441472,-374.55931972,0.00027215,2]
[310118108,1704371441481,-212.61910187,0.00027215,2]
[310118109,1704371441491,-369.79772262,0.00027215,2]
[310118110,1704371441500,-1051.21541603,0.00027215,7]
[310118111,1704371441510,-164.65816911,0.00027215,2]
[310118112,1704371441519,-243.28705844,0.00027216,2]
[310118113,1704371441529,-237.05322,0.00027217,2]
[310118114,1704371441538,-237.05322,0.00027217,2]
[310118115,1704371441548,-151.0,0.00027217,2]
[310118116,1704371441558,-157.953866,0.00027217,2]
[310118117,1704371441568,-157.953866,0.00027217,2]
[310118118,1704371441577,-155.13281341,0.00027217,2]
[310118119,1704371441587,-155.04953248,0.00027217,2]
[310118120,1704371441597,-154.9380186,0.00027217,2]
[310118121,1704371441606,-242.84928095,0.00027217,2]
[310118122,1704371441615,-1573.77393442,0.00027217,2]
[310118123,1704371441625,-297.0513033,0.00027217,2]
[310118124,1704371441635,-585.84654737,0.00027217,2]
[310118125,1704371441645,-155.16060087,0.00027217,2]
[310118126,1704371441655,-160.93191398,0.00027217,2]
[310118127,1704371441664,-434.67093519,0.00027217,2]
[310118128,1704371441674,-286.8622402,0.00027217,2]
[310118129,1704371441694,-217.1850821,0.00027217,2]
[310118130,1704371441705,-511.49884029,0.00027217,2]
[310118131,1704371441715,-1083.92340511,0.00027217,2]
[310118132,1704371441726,-460.98644681,0.00027217,2]
[310118133,1704371441737,-212.74233886,0.00027217,2]
[310118134,1704371441748,-157.86918355,0.00027217,2]
[310118135,1704371441757,-155.19581211,0.00027217,2]
[310118136,1704371441768,-438.79494176,0.00027217,2]
[310118137,1704371441777,-270.96698371,0.00027217,2]
[310118138,1704371441787,-208.64731455,0.00027217,2]
[310118139,1704371441798,-158.7035572,0.00027217,2]
[310118140,1704371441808,-2802.52127845,0.00027217,2]
[310118141,1704371441817,-689.62202558,0.00027217,2]
[310118142,1704371441827,-366.94747299,0.00027218,2]
[310118143,1704371441838,-1288.64984107,0.00027218,2]
[310118144,1704371441848,-154.92253873,0.00027218,2]
[310118145,1704371441858,-237.05322,0.00027219,2]
[310118146,1704371441868,-237.05322,0.00027219,2]
[310118147,1704371441878,-294.28293675,0.00027219,2]
[310118148,1704371441888,-157.953866,0.00027219,2]
[310118149,1704371441897,-157.953866,0.00027219,2]
[310118150,1704371441908,-1010.15566707,0.00027219,2]
[310118181,1704371443203,-2623.42,0.00027209,3]